bitfinex/quotes_SOLUSD_20250607
["timestamp","ask_amount","ask_price","bid_price","bid_amount"]
[1749260138547,9.54706584,147.66,147.65,41.32]
[1749260138718,9.04706584,147.66,147.65,41.32]
[1749260141730,150.1144,147.67,147.65,41.32]
[1749260141926,148.6,147.67,147.65,41.32]
[1749260143518,0.5,147.66,147.65,41.32]
[1749260148060,0.5,147.66,147.65,48.09277345]
[1749260148564,148.6,147.67,147.65,48.09277345]
[1749260148740,148.6,147.67,147.65,41.32]
[1749260151427,157.64706584,147.67,147.65,41.32]
[1749260152629,9.04706584,147.66,147.65,41.32]
[1749260153853,9.54706584,147.66,147.65,41.32]
[1749260158152,16.31938061,147.66,147.65,41.32]
[1749260158355,12.28768239,147.66,147.65,41.32]
[1749260158548,21.33474823,147.66,147.65,41.32]
[1749260158747,21.33474823,147.66,147.64,41.32]
[1749260158952,9.04706584,147.65,147.64,41.32]
[1749260160155,26.0,147.65,147.64,41.32]
[1749260160538,0.5,147.66,147.64,41.32]
[1749260162263,9.54706584,147.66,147.64,41.32]
[1749260162442,0.5,147.66,147.64,41.32]
[1749260162648,14.56240814,147.66,147.64,41.32]
[1749260162848,9.54706584,147.66,147.64,41.32]
[1749260163734,14.56221845,147.66,147.64,41.32]
[1749260164262,21.33462109,147.66,147.64,41.32]
[1749260164462,5.51515261,147.66,147.64,41.32]
[1749260164673,14.56221845,147.66,147.64,41.32]
[1749260167068,5.51515261,147.66,147.64,41.32]
[1749260167255,14.56221845,147.66,147.64,41.32]
[1749260169161,9.04706584,147.65,147.64,41.32]
[1749260171471,26.0,147.65,147.64,41.32]
[1749260172976,35.04706584,147.65,147.64,41.32]
[1749260173355,35.04706584,147.65,147.63,0.9630208]
[1749260173588,14.05687688,147.64,147.63,0.9630208]
[1749260173748,9.04706584,147.64,147.63,0.9630208]
[1749260174363,157.64706584,147.64,147.63,0.9630208]
[1749260175570,148.6,147.64,147.63,0.9630208]
[1749260177060,148.6,147.64,147.63,7.73671178]
[1749260177260,26.0,147.65,147.63,16.78377762]
[1749260177564,26.0,147.65,147.64,41.34]
[1749260179274,26.0,147.65,147.64,48.11323218]
[1749260179876,9.04706584,147.67,147.64,57.16029802]
[1749260179877,26.0,147.67,147.64,57.16029802]
[1749260181679,26.0,147.67,147.64,48.11323218]
[1749260181983,26.0,147.67,147.64,41.34]
[1749260181984,35.04706584,147.67,147.64,41.34]
[1749260183780,0.5,147.66,147.64,41.34]
[1749260184592,0.5,147.66,147.64,48.11310988]
[1749260188987,9.54706584,147.66,147.64,41.34]
[1749260189295,9.04706584,147.65,147.64,41.34]
[1749260192599,9.54706584,147.66,147.64,41.34]
[1749260197676,0.5,147.66,147.64,48.11317623]
[1749260198071,0.5,147.66,147.64,41.34]
[1749260198381,0.5,147.66,147.64,48.11318433]
[1749260199383,26.5,147.66,147.64,57.16025017]
[1749260199581,0.5,147.66,147.64,57.16025017]
[1749260202109,26.0,147.68,147.64,57.16025017]
[1749260202410,183.17927443,147.69,147.66,9.04706584]
[1749260202707,183.17927443,147.69,147.67,41.34]
[1749260203489,183.17927443,147.69,147.68,6.77139761]
[1749260204280,183.17927443,147.69,147.67,48.11170517]
[1749260206481,183.17927443,147.69,147.67,57.15877101]
[1749260206801,183.17927443,147.69,147.68,9.04706584]
[1749260207182,34.57927443,147.69,147.68,9.04706584]
[1749260207890,34.57927443,147.69,147.68,6.77139761]
[1749260210080,34.57927443,147.69,147.68,20.89580144]
[1749260210282,34.57927443,147.69,147.68,6.77139761]
[1749260211717,34.57927443,147.69,147.68,20.89580144]
[1749260219933,34.57927443,147.69,147.68,21.03796301]
[1749260220423,34.57927443,147.69,147.68,20.89580144]
[1749260221394,34.57927443,147.69,147.68,6.77139761]
[1749260221600,34.57927443,147.69,147.68,48.17139761]
[1749260221805,34.57927443,147.69,147.68,41.4]
[1749260222230,48.70367826,147.69,147.66,17.43221588]
[1749260222712,48.70367826,147.69,147.67,41.4]
[1749260223434,34.57927443,147.69,147.67,41.4]
[1749260223813,48.70367826,147.69,147.68,41.42]
[1749260227510,49.20367826,147.69,147.66,10.66]
[1749260227712,35.07927443,147.69,147.67,41.4]
[1749260228917,14.12440383,147.68,147.67,41.4]
[1749260229839,35.07927443,147.69,147.67,41.4]
[1749260230137,14.12440383,147.68,147.66,10.66]
[1749260230438,14.12440383,147.67,147.66,52.04]
[1749260231707,35.07927443,147.69,147.66,10.66]
[1749260231912,14.12440383,147.67,147.66,52.04]
[1749260233926,15.76620383,147.67,147.66,10.66]
[1749260234135,15.76620383,147.67,147.65,41.42]
[1749260234329,14.12440383,147.66,147.63,0.9630208]
[1749260234537,14.12440383,147.64,147.63,42.3830208]
[1749260236537,40.12440383,147.64,147.63,0.9630208]
[1749260241762,26.0,147.64,147.63,0.9630208]
[1749260241937,14.12440383,147.64,147.63,7.73671178]
[1749260243064,14.12440383,147.64,147.63,0.9630208]
[1749260244959,40.12440383,147.64,147.63,0.9630208]
[1749260248544,26.0,147.64,147.63,0.9630208]
[1749260248741,40.12440383,147.64,147.63,0.9630208]
[1749260254960,26.0,147.64,147.63,0.9630208]
[1749260255143,40.12440383,147.64,147.63,0.9630208]
[1749260256267,32.77405269,147.64,147.63,0.9630208]
[1749260256453,58.77405269,147.64,147.63,0.9630208]
[1749260256640,66.04728487,147.64,147.63,0.9630208]
[1749260258757,80.1716887,147.64,147.63,0.9630208]
[1749260262775,45.14964886,147.64,147.63,0.9630208]
[1749260263275,59.27405269,147.64,147.63,0.9630208]
[1749260264770,40.62440383,147.64,147.63,0.9630208]
[1749260271266,35.55096125,147.64,147.63,0.9630208]
[1749260273279,26.5,147.64,147.63,0.9630208]
[1749260273869,0.5,147.64,147.63,0.9630208]
[1749260274459,9.55096125,147.64,147.63,0.9630208]
[1749260274660,9.55096125,147.64,147.63,7.73671178]
[1749260275282,14.63630558,147.64,147.63,7.73671178]
[1749260277467,14.63630558,147.64,147.63,0.9630208]
[1749260282487,163.23630558,147.64,147.63,0.9630208]
[1749260285703,149.1,147.64,147.63,0.9630208]
[1749260285877,163.23630558,147.64,147.63,0.9630208]
[1749260288302,149.1,147.64,147.63,0.9630208]
[1749260288508,163.23630558,147.64,147.63,0.9630208]
[1749260289122,149.1,147.64,147.63,0.9630208]
[1749260289327,149.1,147.64,147.63,7.73671178]
[1749260289625,0.5,147.64,147.63,49.13671178]
[1749260289780,14.13630558,147.67,147.63,74.03301736]
[1749260290204,162.73630558,147.68,147.64,14.13630558]
[1749260290411,48.71558001,147.69,147.65,14.13630558]
[1749260290581,48.71558001,147.69,147.66,41.42]
[1749260290784,14.13630558,147.69,147.66,41.42]
[1749260290998,14.13630558,147.67,147.66,41.42]
[1749260291509,40.13630558,147.67,147.66,41.42]
[1749260293301,40.13630558,147.67,147.66,48.19231477]
[1749260293502,14.13630558,147.67,147.66,48.19231477]
[1749260293890,14.13630558,147.68,147.66,48.19231477]
[1749260294085,40.13630558,147.68,147.66,48.19231477]
[1749260294295,14.13630558,147.67,147.66,48.19231477]
[1749260297489,14.13630558,147.68,147.66,48.19231477]
[1749260298710,26.0,147.71,147.66,48.19231477]
[1749260298924,14.13630558,147.7,147.66,62.32862035]
[1749260300616,26.0,147.71,147.66,62.32862035]
[1749260300617,40.13630558,147.71,147.67,14.13630558]
[1749260301000,148.6,147.72,147.68,24.83630558]
[1749260301317,148.6,147.72,147.69,41.44]
[1749260302706,148.6,147.72,147.7,6.7704807]
[1749260302962,14.13630558,147.74,147.7,20.90678628]
[1749260303094,32.49596279,147.75,147.7,20.90678628]
[1749260303418,18.35965721,147.75,147.7,20.90678628]
[1749260303595,32.49596279,147.75,147.7,20.90678628]
[1749260306233,32.49596279,147.75,147.71,14.13630558]
[1749260306395,32.49596279,147.75,147.72,41.42]
[1749260306911,14.13630558,147.73,147.72,41.42]
[1749260308831,14.13630558,147.74,147.72,48.18946495]
[1749260309045,32.49596279,147.75,147.72,48.18946495]
[1749260309243,18.35965721,147.75,147.72,48.18946495]
[1749260309442,32.49596279,147.75,147.72,48.18946495]
[1749260312656,14.13630558,147.74,147.7,6.7704807]
[1749260312849,14.13630558,147.74,147.71,41.42]
[1749260314562,14.13630558,147.74,147.71,48.18987408]
[1749260315593,14.13630558,147.73,147.71,41.42]
[1749260315765,14.13630558,147.73,147.71,48.18997693]
[1749260317295,14.13630558,147.74,147.71,48.18997693]
[1749260319485,14.13630558,147.74,147.71,6.76997693]
[1749260319685,14.13630558,147.74,147.72,41.38]
[1749260321600,14.13630558,147.74,147.72,48.14950764]
[1749260326115,14.13630558,147.74,147.72,41.38]
[1749260326824,14.13630558,147.73,147.72,41.38]
[1749260331024,14.13630558,147.73,147.72,46.43206166]
[1749260331319,14.13630558,147.73,147.72,41.38]
[1749260331720,14.13630558,147.73,147.72,46.43192261]
[1749260332016,14.13630558,147.73,147.72,46.4318369]
[1749260332218,14.13630558,147.73,147.72,46.43196385]
[1749260333116,14.13630558,147.73,147.72,46.4321929]
[1749260333298,14.13630558,147.73,147.72,46.43229733]
[1749260333504,14.13630558,147.73,147.72,46.43219322]
[1749260333704,14.13630558,147.73,147.72,46.43229733]
[1749260334017,166.95965721,147.75,147.72,46.43218453]
[1749260334219,14.13630558,147.73,147.72,41.38]
[1749260334416,14.13630558,147.73,147.72,46.43218422]
[1749260334915,14.13630558,147.73,147.72,41.38]
[1749260336317,14.13630558,147.73,147.68,10.68]
[1749260336519,14.13630558,147.71,147.69,46.37409299]
[1749260336719,14.13630558,147.71,147.7,5.05402404]
[1749260336920,14.13630558,147.71,147.7,5.05402387]
[1749260337222,14.13630558,147.71,147.7,5.05410871]
[1749260337422,14.13630558,147.71,147.7,5.0541084]
[1749260338413,14.13630558,147.71,147.69,48.09076798]
[1749260338605,14.13630558,147.71,147.7,5.05854823]
[1749260338801,14.13630558,147.71,147.69,48.09076798]
[1749260339124,14.13630558,147.71,147.7,5.05850131]
[1749260339425,14.13630558,147.71,147.68,10.68]
[1749260339627,34.40353808,147.73,147.69,41.32]
[1749260340340,39.40371835,147.73,147.69,41.32]
[1749260340524,34.40353808,147.73,147.69,41.32]
[1749260340900,14.13630558,147.7,147.69,41.32]
[1749260341100,14.13630558,147.7,147.69,46.38164319]
[1749260341720,14.13630558,147.7,147.69,5.06164319]
[1749260342004,14.13630558,147.7,147.68,52.0]
[1749260342203,14.13630558,147.69,147.68,52.0]
[1749260342403,14.13630558,147.69,147.68,10.68]
[1749260343109,14.13630558,147.69,147.66,41.32]
[1749260343422,14.13630558,147.67,147.65,6.7727251]
[1749260343599,14.13630558,147.66,147.65,6.7727251]
[1749260343800,14.13630558,147.66,147.65,48.0927251]
[1749260346818,162.73630558,147.68,147.65,48.0927251]
[1749260347017,148.6,147.68,147.65,48.0927251]
[1749260347317,162.73630558,147.68,147.65,48.0927251]
[1749260347517,162.73630558,147.68,147.66,41.32]
[1749260347751,162.73630558,147.68,147.66,48.092095]
[1749260351047,148.6,147.68,147.66,48.092095]
[1749260352943,26.0,147.7,147.66,62.22840058]
[1749260353943,40.13630558,147.7,147.66,62.22840058]
[1749260354456,40.13630558,147.7,147.66,48.092095]
[1749260354457,14.13630558,147.68,147.66,48.092095]
[1749260354861,14.13630558,147.67,147.66,41.32]
[1749260355158,148.6,147.69,147.66,48.09231477]
[1749260355338,14.13630558,147.68,147.66,48.09231477]
[1749260355862,14.13630558,147.67,147.66,41.32]
[1749260357062,148.6,147.69,147.66,41.32]
[1749260357362,14.13630558,147.67,147.66,41.32]
[1749260358052,14.13630558,147.67,147.64,10.68]
[1749260358248,14.13630558,147.65,147.64,10.68]
[1749260358453,14.13630558,147.65,147.64,52.1]
[1749260358958,14.13630558,147.65,147.64,10.68]
[1749260359267,14.13630558,147.65,147.64,41.42]
[1749260360161,14.13630558,147.65,147.63,0.9630208]
[1749260360358,14.13630558,147.64,147.63,0.9630208]
[1749260362665,14.63630558,147.64,147.63,0.9630208]
[1749260365167,14.63630558,147.64,147.63,42.4030208]
[1749260367773,0.5,147.64,147.63,42.4030208]
[1749260367955,14.63630558,147.64,147.63,42.4030208]
[1749260368164,14.63630558,147.64,147.63,0.9630208]
[1749260368366,80.1954922,147.64,147.63,0.9630208]
[1749260369457,80.33765377,147.64,147.63,0.9630208]
[1749260372279,0.28432314,147.63,147.62,2.74302556]
[1749260372468,54.5569343,147.63,147.62,2.74302556]
[1749260373378,61.33062528,147.63,147.62,2.74302556]
[1749260374968,14.13630558,147.59,147.58,52.12]
[1749260375759,14.13630558,147.59,147.58,10.66]
[1749260376480,14.13630558,147.59,147.57,41.46]
[1749260376686,14.13630558,147.58,147.57,41.46]
[1749260376861,14.13630558,147.58,147.54,17.43767086]
[1749260377064,14.13630558,147.58,147.56,41.46]
[1749260378562,14.13630558,147.57,147.56,48.23669821]
[1749260383175,14.13630558,147.57,147.56,41.46]
[1749260383594,14.13630558,147.57,147.54,17.43765218]
[1749260383912,174.6,147.58,147.55,41.42]
[1749260384894,14.13630558,147.56,147.55,41.42]
[1749260385190,14.13630558,147.56,147.54,17.43765218]
[1749260385376,174.6,147.58,147.55,41.42]
[1749260385575,14.13630558,147.56,147.55,41.42]
[1749260390099,14.13630558,147.56,147.55,48.1973636]
[1749260390498,14.13630558,147.57,147.55,48.1973636]
[1749260391590,188.73630558,147.58,147.55,48.1973636]
[1749260391806,14.13630558,147.57,147.55,48.1973636]
[1749260392191,148.6,147.58,147.55,65.14077261]
[1749260392400,162.73630558,147.58,147.55,65.14077261]
[1749260392610,14.13630558,147.57,147.55,65.14077261]
[1749260394704,162.73630558,147.58,147.55,65.14077261]
[1749260397610,14.13630558,147.57,147.55,65.14077261]
[1749260400438,14.13630558,147.57,147.55,58.9173636]
[1749260406143,148.6,147.58,147.55,58.9173636]
[1749260406331,14.13630558,147.61,147.56,14.13630558]
[1749260406518,14.13630558,147.61,147.57,41.38]
[1749260407135,0.5,147.6,147.57,41.38]
[1749260407332,9.55180041,147.6,147.57,41.38]
[1749260407857,9.55180041,147.6,147.58,6.7759859]
[1749260407858,9.05180041,147.59,147.58,6.7759859]
[1749260408162,9.05180041,147.59,147.57,48.15629943]
[1749260408527,9.05180041,147.58,147.57,48.15629943]
[1749260409359,14.14794438,147.58,147.57,48.15629943]
[1749260409558,14.14794438,147.59,147.57,48.15629943]
[1749260409939,14.64794438,147.6,147.57,48.15629943]
[1749260410627,14.14794438,147.59,147.57,48.15629943]
[1749260412040,14.64794438,147.6,147.57,48.15629943]
[1749260413162,0.5,147.6,147.57,48.15629943]
[1749260413366,14.14794438,147.59,147.57,48.15629943]
[1749260415445,14.14794438,147.58,147.57,48.15629943]
[1749260416660,216.87774437,147.62,147.57,48.15629943]
[1749260416889,14.14794438,147.6,147.57,48.15629943]
[1749260417573,148.6,147.61,147.57,48.15629943]
[1749260417574,14.14794438,147.59,147.57,48.15629943]
[1749260418844,14.14794438,147.58,147.57,48.15629943]
[1749260421063,14.14794438,147.58,147.57,41.38]
[1749260421249,14.14794438,147.58,147.57,41.42]
[1749260427267,14.14794438,147.58,147.57,41.4]
[1749260429189,9.05659529,147.58,147.57,41.4]
[1749260434877,9.05659529,147.6,147.57,48.17644507]
[1749260435503,148.6,147.61,147.57,48.17644507]
[1749260435673,157.65659529,147.61,147.57,48.17644507]
[1749260439994,9.05659529,147.6,147.57,48.17644507]
[1749260440400,9.55659529,147.6,147.57,48.17644507]
[1749260442501,0.5,147.6,147.58,9.05659529]
[1749260442688,42.27774437,147.62,147.59,50.41659529]
[1749260442874,42.27774437,147.62,147.6,10.72]
[1749260443075,42.27774437,147.62,147.61,41.36]
[1749260443489,51.33433966,147.62,147.61,48.13460876]
[1749260449017,42.27774437,147.62,147.61,48.13460876]
[1749260454416,42.27774437,147.62,147.61,57.19120405]
[1749260454607,42.27774437,147.62,147.61,48.13460876]
[1749260455015,42.27774437,147.62,147.61,57.19120405]
[1749260457831,148.6,147.65,147.61,74.12772596]
[1749260458040,9.05659529,147.67,147.63,9.05659529]
[1749260458207,9.05659529,147.67,147.64,41.36]
[1749260458438,9.05659529,147.67,147.65,17.45277345]
[1749260458638,9.05659529,147.67,147.66,41.36]
[1749260460167,9.05659529,147.67,147.66,48.13231477]
[1749260461445,9.05659529,147.67,147.66,41.36]
[1749260461756,9.05659529,147.67,147.66,48.13231477]
[1749260462143,9.05659529,147.67,147.65,10.68]
[1749260462144,9.05659529,147.67,147.65,52.06]
[1749260462341,9.05659529,147.66,147.64,41.4]
[1749260462547,9.05659529,147.65,147.62,6.7738365]
[1749260462739,26.0,147.67,147.63,41.4]
[1749260463449,26.0,147.67,147.63,48.17346083]
[1749260463937,9.05659529,147.65,147.63,48.17346083]
[1749260464961,9.05659529,147.66,147.63,48.17346083]
[1749260465138,14.13451045,147.66,147.63,48.17346083]
[1749260465338,148.6,147.68,147.63,79.24219874]
[1749260465538,162.73451045,147.68,147.64,14.13451045]
[1749260465757,148.6,147.68,147.65,55.51451045]
[1749260465981,148.6,147.68,147.66,10.66]
[1749260466164,148.6,147.68,147.67,41.4]
[1749260466960,148.6,147.68,147.67,48.17185616]
[1749260467662,1.6089,147.7,147.67,48.17185616]
[1749260467862,15.74341045,147.7,147.67,48.17185616]
[1749260468478,14.13451045,147.7,147.67,48.17185616]
[1749260470388,14.13451045,147.69,147.67,48.17185616]
[1749260471668,20.49251045,147.68,147.58,6.1009]
[1749260471886,14.13451045,147.63,147.59,66.17451045]
[1749260472063,14.13451045,147.63,147.59,10.66]
[1749260472267,14.13451045,147.61,147.6,41.4]
[1749260472670,14.13451045,147.62,147.6,41.4]
[1749260473361,14.13451045,147.62,147.6,48.17482358]
[1749260473566,26.0,147.66,147.6,48.17482358]
[1749260473792,14.13451045,147.63,147.6,48.17482358]
[1749260473989,14.13451045,147.62,147.6,48.17482358]
[1749260475778,14.13451045,147.62,147.6,6.77482358]
[1749260475973,14.13451045,147.62,147.61,41.4]
[1749260476891,14.13451045,147.62,147.61,48.17460876]
[1749260479672,14.13451045,147.63,147.61,48.17460876]
[1749260480071,14.13451045,147.63,147.61,58.87460876]
[1749260480388,14.13451045,147.64,147.61,58.87460876]
[1749260495213,9.04822101,147.64,147.61,58.87460876]
[1749260500390,9.04822101,147.64,147.62,10.7]
[1749260500714,9.04822101,147.64,147.63,41.36]
[1749260501509,9.04822101,147.64,147.63,48.13369098]
[1749260502989,148.6,147.65,147.63,48.13369098]
[1749260503199,9.04822101,147.64,147.63,48.13369098]
[1749260510818,9.04822101,147.64,147.63,41.36]
[1749260522012,10.57042101,147.64,147.62,10.7]
[1749260522213,9.04822101,147.63,147.62,10.7]
[1749260522429,9.04822101,147.63,147.62,52.04]
[1749260523725,9.04822101,147.63,147.62,10.7]
[1749260524037,9.04822101,147.63,147.62,52.04]
[1749260529131,9.04822101,147.63,147.62,41.34]
[1749260531856,9.04822101,147.64,147.62,48.11402155]
[1749260534085,148.6,147.65,147.62,58.79402155]
[1749260534250,148.6,147.65,147.62,67.84224256]
[1749260535344,148.6,147.65,147.62,75.72939616]
[1749260537058,157.64822101,147.65,147.62,75.72939616]
[1749260537562,9.04822101,147.64,147.62,58.79402155]
[1749260549181,9.04822101,147.64,147.63,17.43369098]
[1749260553366,157.64822101,147.65,147.63,17.43369098]
[1749260553578,157.64822101,147.65,147.64,41.34]
[1749260555384,157.64822101,147.65,147.64,48.11323218]
[1749260555786,157.64822101,147.65,147.64,41.34]
[1749260556368,29.35304528,147.66,147.64,57.16145319]
[1749260556571,29.35304528,147.66,147.65,9.04822101]
[1749260557475,29.35304528,147.66,147.65,15.82099446]
[1749260559087,29.35304528,147.66,147.65,15.96315603]
[1749260559796,1.5895,147.71,147.65,32.89508965]
[1749260559984,1.5895,147.71,147.67,9.04822101]
[1749260560180,10.63772101,147.71,147.68,52.0]
[1749260560385,9.04822101,147.7,147.68,52.0]
[1749260561603,1.5895,147.71,147.68,52.0]
[1749260561902,9.04822101,147.7,147.68,52.0]
[1749260562676,9.04822101,147.7,147.68,58.77138927]
[1749260565498,10.63772101,147.71,147.68,58.77138927]
[1749260565788,9.04822101,147.71,147.68,58.77138927]
[1749260566004,157.64822101,147.72,147.68,67.81961028]
[1749260567919,157.64822101,147.72,147.68,58.77138927]
[1749260568299,157.64822101,147.72,147.68,84.74810432]
[1749260568503,35.04822101,147.73,147.68,84.74810432]
[1749260569390,9.04822101,147.72,147.68,84.74810432]
[1749260569708,35.04822101,147.73,147.68,84.74810432]
[1749260576119,9.04822101,147.72,147.68,58.77138927]
[1749260576294,9.04822101,147.72,147.68,67.81961028]
[1749260576498,35.04822101,147.73,147.68,67.81961028]
[1749260578925,1.627,147.74,147.69,9.04822101]
[1749260579108,10.67522101,147.74,147.69,9.04822101]
[1749260580017,9.04822101,147.73,147.69,9.04822101]
[1749260580418,9.04822101,147.73,147.7,6.7704807]
[1749260580626,1.627,147.74,147.71,41.32]
[1749260580822,9.04822101,147.73,147.71,41.32]
[1749260581213,9.04822101,147.73,147.71,51.98]
[1749260581813,9.04822101,147.73,147.71,58.74979066]
[1749260582636,1.627,147.74,147.71,58.74979066]
[1749260582836,35.04822101,147.75,147.71,58.74979066]
[1749260583012,26.0,147.75,147.71,67.79801167]
[1749260583325,164.01872101,147.76,147.72,9.04822101]
[1749260583326,148.6,147.76,147.72,9.04822101]
[1749260583526,148.6,147.76,147.73,9.04822101]
[1749260583731,148.6,147.76,147.74,41.3]
[1749260583910,148.6,147.76,147.75,6.7681895]
[1749260584924,148.6,147.76,147.74,48.06863123]
[1749260587241,34.61641286,147.77,147.74,48.06863123]
[1749260588138,25.56819185,147.77,147.74,48.06863123]
[1749260588427,25.56819185,147.77,147.74,57.11685224]
[1749260588814,25.56819185,147.77,147.74,48.06863123]
[1749260589020,157.64822101,147.8,147.76,9.04822101]
[1749260589240,157.64822101,147.8,147.78,6.76681553]
[1749260590229,157.64822101,147.8,147.79,41.3]
[1749260590747,148.6,147.8,147.79,41.3]
[1749260591040,157.64822101,147.8,147.79,41.3]
[1749260591645,1.5482,147.82,147.79,41.3]
[1749260591955,1.5482,147.78,147.76,41.3]
[1749260592253,9.04822101,147.77,147.76,41.3]
[1749260593251,14.11692242,147.77,147.76,41.3]
[1749260596763,150.1482,147.78,147.76,48.06760624]
[1749260597076,14.11692242,147.77,147.76,48.06760624]
[1749260597858,150.1482,147.78,147.76,48.06760624]
[1749260598162,6.1137,147.79,147.76,48.06760624]
[1749260598365,26.0,147.8,147.76,62.18452866]
[1749260598366,40.11692242,147.8,147.76,62.18452866]
[1749260598886,26.0,147.8,147.76,62.18452866]
[1749260599090,40.11692242,147.8,147.76,62.18452866]
[1749260600189,1.6382,147.81,147.76,79.1038573]
[1749260600391,14.11692242,147.79,147.76,6.76760624]
[1749260600684,14.11692242,147.78,147.77,41.28]
[1749260602911,148.6,147.8,147.77,41.28]
[1749260603104,14.11692242,147.78,147.77,41.28]
[1749260603693,148.6,147.8,147.77,48.04720679]
[1749260604004,14.11692242,147.78,147.77,48.04720679]
[1749260605115,14.11692242,147.78,147.77,41.28]
[1749260609417,148.6,147.8,147.77,41.28]
[1749260609744,14.11692242,147.78,147.77,41.28]
[1749260610524,148.6,147.77,147.76,41.28]
[1749260610728,162.71692242,147.77,147.76,41.28]
[1749260614443,162.71692242,147.77,147.75,41.28]
[1749260614647,14.11692242,147.76,147.75,41.28]
[1749260616669,14.11692242,147.76,147.74,10.66]
[1749260616839,148.6,147.77,147.75,41.28]
[1749260617167,14.11692242,147.76,147.75,41.28]
[1749260617366,148.6,147.77,147.75,41.28]
[1749260617566,14.11692242,147.76,147.75,41.28]
[1749260623757,148.6,147.77,147.75,41.28]
[1749260624073,14.11692242,147.76,147.75,41.28]
[1749260626272,148.6,147.75,147.74,10.66]
[1749260626474,162.71692242,147.75,147.74,51.94]
[1749260628547,148.6,147.75,147.74,51.94]
[1749260628746,162.71692242,147.75,147.74,51.94]
[1749260635286,162.71692242,147.75,147.74,41.28]
[1749260640074,14.11692242,147.75,147.74,41.28]
[1749260649273,9.03680023,147.75,147.74,41.28]
[1749260651476,9.03680023,147.75,147.72,17.40953116]
[1749260651692,35.03680023,147.73,147.72,10.64]
[1749260652279,35.03680023,147.73,147.71,41.28]
[1749260652498,9.03680023,147.72,147.71,41.28]
[1749260653400,162.7267667,147.72,147.7,41.28]
[1749260653697,14.1267667,147.71,147.7,41.28]
[1749260655401,14.1267667,147.71,147.7,48.0504807]
[1749260656206,148.6,147.72,147.7,48.0504807]
[1749260656377,14.1267667,147.71,147.7,48.0504807]
[1749260657391,148.6,147.72,147.7,48.0504807]
[1749260660507,148.6,147.72,147.71,17.41002234]
[1749260662511,148.6,147.75,147.71,31.53678904]
[1749260662703,162.7267667,147.75,147.72,41.28]
[1749260664106,148.6,147.75,147.72,41.28]
[1749260664506,148.6,147.75,147.73,6.7691058]
[1749260664704,148.6,147.75,147.74,41.28]
[1749260666116,148.6,147.75,147.74,48.04864762]
[1749260670112,14.1267667,147.77,147.74,48.04864762]
[1749260677223,9.03259675,147.77,147.74,48.04864762]
[1749260679711,26.0,147.78,147.74,74.00286343]
[1749260679903,148.6,147.79,147.76,9.03259675]
[1749260680227,148.6,147.79,147.77,51.9]
[1749260681024,148.6,147.79,147.78,6.76681553]
[1749260688022,9.03259675,147.82,147.78,32.71645112]
[1749260688231,9.03259675,147.82,147.79,41.26]
[1749260690052,9.03259675,147.82,147.8,6.76589986]
[1749260690224,26.0,147.82,147.81,41.26]
[1749260690419,35.03259675,147.82,147.81,41.26]
[1749260698212,26.0,147.82,147.81,41.26]
[1749260698416,35.03259675,147.82,147.81,41.26]
[1749260703955,26.0,147.82,147.81,48.02544212]
[1749260704359,35.03259675,147.82,147.81,48.02544212]
[1749260704523,35.03259675,147.82,147.81,41.26]
[1749260708240,26.0,147.82,147.81,41.26]
[1749260708445,35.03259675,147.82,147.81,41.26]
[1749260709745,35.03259675,147.82,147.81,48.02544212]
[1749260710117,35.03259675,147.82,147.81,41.26]
[1749260711145,35.03259675,147.82,147.81,48.02544212]
[1749260713145,26.0,147.82,147.81,48.02544212]
[1749260713350,9.03259675,147.85,147.81,48.02544212]
[1749260713521,9.03259675,147.85,147.81,73.97164417]
[1749260713726,23.06102473,147.88,147.82,9.03259675]
[1749260713945,9.03259675,147.87,147.83,9.03259675]
[1749260714247,24.07292148,147.88,147.84,50.27259675]
[1749260714455,41.04032473,147.88,147.85,10.62]
[1749260714770,9.03259675,147.87,147.85,10.62]
[1749260715159,9.03259675,147.87,147.85,17.38352819]
[1749260715754,41.04032473,147.88,147.85,17.38352819]
[1749260715934,50.07292148,147.88,147.85,17.38352819]
[1749260722744,50.07292148,147.88,147.86,10.62]
[1749260722954,50.07292148,147.88,147.87,41.22]